bitfinex-derivatives/quotes_BTCF0:USTF0_20251204
["timestamp","ask_amount","ask_price","bid_price","bid_amount"]
[1764863905469,0.36186,93021.0,93020.0,0.1548984]
[1764863905772,0.33685208,93021.0,93020.0,0.15731842]
[1764863907066,0.33685208,93021.0,93020.0,0.15931842]
[1764863907262,0.33685208,93021.0,93020.0,0.16531842]
[1764863907458,0.00016125,93030.0,93029.0,0.1548974]
[1764863907663,0.0107457,93043.0,93042.0,0.1548958]
[1764863907863,0.0107457,93043.0,93042.0,0.14415]
[1764863908164,0.0680357,93043.0,93042.0,0.14415]
[1764863908670,0.0680357,93043.0,93027.0,0.0561]
[1764863908671,0.1606968,93034.0,93033.0,0.15506808]
[1764863908861,0.1606968,93034.0,93033.0,0.14415]
[1764863909164,0.1606968,93034.0,93027.0,0.05752]
[1764863909165,0.14995,93028.0,93027.0,0.05752]
[1764863909365,0.1606978,93025.0,93024.0,0.14431125]
[1764863909562,0.1606978,93025.0,93024.0,0.14673127]
[1764863910963,0.1606978,93025.0,93024.0,0.00016125]
[1764863911166,0.1616978,93025.0,93024.0,0.00016125]
[1764863911366,0.1646978,93025.0,93024.0,0.00016125]
[1764863911769,0.1606995,93011.0,93010.0,0.14415]
[1764863912171,0.14995,93011.0,93010.0,0.14415]
[1764863913062,0.37540622,93015.0,93014.0,0.14415]
[1764863913268,0.46806622,93015.0,93014.0,0.14657002]
[1764863913471,0.31811622,93015.0,93014.0,0.14657002]
[1764863914169,0.32011622,93015.0,93014.0,0.14657002]
[1764863914760,0.37740622,93015.0,93014.0,0.14657002]
[1764863914970,0.002,93015.0,93014.0,0.14657002]
[1764863916168,0.01090975,93020.0,93019.0,0.1971785]
[1764863916474,0.00016125,93020.0,93019.0,0.19959852]
[1764863917567,0.00016125,93020.0,93019.0,0.20159852]
[1764863917972,0.50392,93032.0,93031.0,0.18643]
[1764863918264,0.4189238,93060.0,93029.0,0.0107474]
[1764863918265,0.0107466,93036.0,93035.0,0.1971767]
[1764863918880,0.0107466,93036.0,93035.0,0.18643]
[1764863919377,0.5146657,93043.0,93042.0,0.18643]
[1764863919574,0.05790873,93056.0,93053.0,0.0107445]
[1764863919762,0.187404,93059.0,93058.0,0.18643]
[1764863919966,0.187404,93059.0,93058.0,0.09382]
[1764863920374,0.0107448,93051.0,93049.0,0.05482]
[1764863920565,0.0964248,93051.0,93050.0,0.18885002]
[1764863920768,0.08568,93051.0,93050.0,0.19959492]
[1764863921078,0.08568,93051.0,93050.0,0.18885002]
[1764863921377,0.17666,93051.0,93050.0,0.18643]
[1764863922279,0.0107446,93054.0,93053.0,0.18364]
[1764863922479,0.0107442,93057.0,93056.0,0.18364]
[1764863922781,0.1017442,93057.0,93056.0,0.18364]
[1764863923674,0.00016125,93059.0,93058.0,0.18364]
[1764863923879,0.00016125,93059.0,93058.0,0.19680402]
[1764863924082,0.00016125,93059.0,93058.0,0.19660861]
[1764863924969,0.17764125,93059.0,93058.0,0.18364]
[1764863925169,0.17748,93050.0,93049.0,0.18364]
[1764863925581,0.17748,93050.0,93049.0,0.09304]
[1764863926368,0.1882256,93044.0,93043.0,0.18364]
[1764863926582,0.17748,93044.0,93043.0,0.18364]
[1764863927874,0.17948,93044.0,93043.0,0.18364]
[1764863928075,0.002,93044.0,93043.0,0.1943857]
[1764863928776,0.5038,93050.0,93049.0,0.247245]
[1764863928981,0.3608,93060.0,93058.0,0.194384]
[1764863929280,0.3608,93060.0,93058.0,0.19680402]
[1764863929685,0.22122125,93060.0,93058.0,0.19680402]
[1764863929972,0.22122125,93060.0,93059.0,0.18606002]
[1764863932181,0.22622125,93060.0,93059.0,0.18606002]
[1764863933375,0.23196505,93060.0,93059.0,0.18606002]
[1764863933577,0.22222125,93060.0,93059.0,0.18606002]
[1764863934381,0.000161,93069.0,93059.0,0.58606002]
[1764863934586,0.000161,93069.0,93065.0,0.00242002]
[1764863935182,0.000161,93069.0,93065.0,0.01316322]
[1764863935582,0.3618,93066.0,93065.0,0.01316322]
[1764863936084,0.3638,93066.0,93065.0,0.01316322]
[1764863936878,0.3618,93066.0,93065.0,0.01316322]
[1764863937980,0.3608,93066.0,93065.0,0.01316322]
[1764863943882,0.56066,93066.0,93065.0,0.06844322]
[1764863944087,0.3608,93066.0,93065.0,0.0660232]
[1764863944885,0.3608,93066.0,93065.0,0.4660232]
[1764863946192,0.3608,93066.0,93065.0,0.9660232]
[1764863946694,0.3608,93066.0,93065.0,0.9780232]
[1764863947193,0.3608,93066.0,93065.0,0.5780232]
[1764863947394,0.3608,93066.0,93065.0,0.5810232]
[1764863948086,0.3608,93066.0,93065.0,0.5690232]
[1764863948287,0.3608,93066.0,93065.0,0.5790232]
[1764863948796,0.3608,93066.0,93065.0,0.5780232]
[1764863948997,0.3608,93066.0,93065.0,0.5760232]
[1764863949193,0.3608,93066.0,93065.0,0.60671795]
[1764863949491,0.3608,93066.0,93065.0,0.5780232]
[1764863949793,0.3608,93066.0,93065.0,0.60667298]
[1764863951398,0.3608,93066.0,93065.0,0.60467298]
[1764863951690,0.3608,93066.0,93065.0,0.60867298]
[1764863952100,0.3608,93066.0,93065.0,0.59767298]
[1764863952292,0.3608,93066.0,93065.0,0.5780232]
[1764863952599,0.45384,93066.0,93065.0,0.5780232]
[1764863953188,0.56066,93066.0,93065.0,0.5780232]
[1764863953897,0.56066,93066.0,93065.0,0.0780232]
[1764863954603,0.00026857,93086.0,93085.0,0.0660209]
[1764863954894,0.06039,93100.0,93099.0,0.0660193]
[1764863954895,0.26025,93100.0,93099.0,0.0660193]
[1764863955287,0.26025,93110.0,93109.0,0.0660181]
[1764863955798,0.06039,93110.0,93109.0,0.0660181]
[1764863955997,0.26025,93110.0,93109.0,0.0660181]
[1764863956292,0.26025,93110.0,93109.0,0.07681526]
[1764863957086,0.26025,93110.0,93109.0,0.02153526]
[1764863958194,0.26025,93110.0,93109.0,0.04917526]
[1764863958394,0.26025,93110.0,93109.0,0.07681526]
[1764863959394,0.27693507,93130.0,93109.0,0.07681526]
[1764863959395,0.05790873,93143.0,93135.0,0.05528]
[1764863959593,0.19986,93143.0,93142.0,0.06843432]
[1764863959790,0.19986,93143.0,93142.0,1.56843432]
[1764863960191,0.26025,93150.0,93149.0,0.0383735]
[1764863960391,0.26025,93150.0,93149.0,0.01315352]
[1764863961803,0.26025,93150.0,93149.0,0.04079352]
[1764863962405,0.26025,93150.0,93149.0,0.06843352]
[1764863963398,0.06039,93150.0,93149.0,0.06843352]
[1764863963594,0.26025,93150.0,93149.0,0.06843352]
[1764863964397,0.26025,93150.0,93149.0,0.00242002]
[1764863964797,0.26025,93150.0,93149.0,0.01315352]
[1764863964997,0.26025,93150.0,93142.0,1.5]
[1764863964998,0.19986,93143.0,93142.0,1.5]
[1764863965399,0.2105956,93131.0,93130.0,0.00016107]
[1764863965605,0.06039,93140.0,93130.0,0.00016107]
[1764863965606,0.06039,93140.0,93130.0,0.00258109]
[1764863965798,0.26025,93140.0,93139.0,0.00242002]
[1764863966400,0.19986,93103.0,93102.0,0.02875238]
[1764863966596,0.19986,93103.0,93102.0,0.00011128]
[1764863966906,0.19986,93103.0,93102.0,0.001079]
[1764863967102,0.19986,93103.0,93102.0,0.00027235]
[1764863967706,0.19986,93103.0,93102.0,0.01509318]
[1764863967902,0.19986,93103.0,93102.0,0.01609318]
[1764863968304,0.19986,93103.0,93102.0,0.01193211]
[1764863968500,0.2105998,93094.0,93093.0,0.00016107]
[1764863968708,0.2105998,93094.0,93056.0,0.14279493]
[1764863968709,0.19986,93077.0,93058.0,0.0286411]
[1764863968905,0.06039,93096.0,93050.0,0.01]
[1764863968906,0.06039,93072.0,93057.0,0.0107441]
[1764863969307,0.0107425,93071.0,93062.0,0.0107435]
[1764863969506,0.210696,93071.0,93070.0,0.00080665]
[1764863970011,0.1999535,93071.0,93070.0,0.00080665]
[1764863970811,0.1999535,93071.0,93070.0,0.01080665]
[1764863971196,0.1999535,93071.0,93070.0,0.01280665]
[1764863972710,0.1999535,93071.0,93070.0,0.012]
[1764863978303,0.1999535,93071.0,93070.0,0.01216107]
[1764863984526,0.1999535,93071.0,93070.0,1.07e-06]
[1764863984729,0.2250335,93062.0,93061.0,0.00016116]
[1764863984928,0.22745352,93062.0,93061.0,0.00096781]
[1764863985326,0.22745352,93062.0,93061.0,0.00016116]
[1764863985827,0.22745352,93062.0,93061.0,0.00316116]
[1764863986130,0.22795352,93062.0,93061.0,0.01616116]
[1764863986532,0.22795352,93062.0,93061.0,1.16e-06]
[1764863987329,0.2177448,93051.0,93041.0,0.0107459]
[1764863987528,0.10324,93024.0,93023.0,0.18822176]
[1764863987722,0.10331743,93024.0,93023.0,0.18902841]
[1764863988730,0.10331743,93024.0,93023.0,0.20175383]
[1764863988932,0.10431743,93024.0,93023.0,0.21575383]
[1764863989517,0.10431743,93024.0,93023.0,0.21275383]
[1764863989824,0.00107743,93024.0,93023.0,0.21275383]
[1764863990626,0.00107743,93024.0,93023.0,0.71275383]
[1764863991831,0.10431743,93024.0,93023.0,0.71275383]
[1764863993430,0.00107743,93024.0,93023.0,0.71275383]
[1764863993727,0.00016125,93033.0,93032.0,0.188087]
[1764863993940,0.00016125,93033.0,93032.0,0.18889365]
[1764863994529,0.00020801,93033.0,93032.0,0.18889365]
[1764863994830,0.06714,93050.0,93032.0,0.18889365]
[1764863994831,0.17038,93050.0,93049.0,0.188085]
[1764863995031,0.27414,93050.0,93049.0,0.188085]
[1764863995335,0.0107454,93047.0,93046.0,0.0107454]
[1764863995630,0.0107454,93047.0,93032.0,0.506]
[1764863995631,0.06714,93033.0,93032.0,0.59467]
[1764863995835,0.27414,93033.0,93032.0,0.68034]
[1764863996132,0.27414,93033.0,93032.0,0.67734]
[1764863996625,0.27414,93033.0,93032.0,0.58867]
[1764863996825,0.27414,93033.0,93032.0,0.5]
[1764863997527,0.06714,93033.0,93032.0,0.003]
[1764863997729,0.2848869,93033.0,93032.0,0.003]
[1764863998330,0.2177479,93024.0,93023.0,0.01302043]
[1764863998524,0.22016792,93024.0,93023.0,0.01302043]
[1764863999925,0.22416792,93024.0,93023.0,0.01402043]
[1764864000544,0.207,93007.0,93006.0,0.17920146]
[1764864000836,0.207,93007.0,93006.0,0.27167811]
[1764864001036,0.207,93007.0,93006.0,0.18441545]
[1764864001729,0.20712118,93007.0,93006.0,0.0002688]
[1764864001932,0.20712118,93007.0,93006.0,0.21845545]
[1764864002226,0.20812118,93007.0,93006.0,0.23320545]
[1764864002832,0.00112118,93007.0,93006.0,0.23320545]
[1764864003226,0.06714,93050.0,93015.0,0.21738]
[1764864003537,0.27414,93033.0,93032.0,0.010747]
[1764864004330,0.077885,93050.0,93032.0,0.010747]
[1764864004331,0.06714,93050.0,93032.0,0.010747]
[1764864005033,0.06714,93050.0,93039.0,0.19374665]
[1764864005231,0.06714,93050.0,93049.0,0.107215]
[1764864005232,0.2768,93050.0,93049.0,0.107215]
[1764864005435,0.2768,93050.0,93049.0,0.203685]
[1764864006226,0.00016125,93054.0,93053.0,0.2036846]
[1764864006442,0.00016125,93054.0,93053.0,0.0107446]
[1764864006443,0.21224127,93054.0,93053.0,0.0107446]
[1764864006940,0.00016125,93054.0,93053.0,0.2036846]
[1764864007134,0.20982125,93054.0,93053.0,0.2036846]
[1764864007829,0.20982125,93054.0,93053.0,0.0107446]
[1764864008433,0.20982125,93054.0,93049.0,0.001]
[1764864008434,0.20966,93050.0,93049.0,0.001]
[1764864008638,0.21208002,93050.0,93049.0,0.001]
[1764864008840,0.21208002,93050.0,93027.0,0.00016125]
[1764864008841,0.20966,93044.0,93043.0,0.0107456]
[1764864009035,0.21208002,93044.0,93043.0,0.0107456]
[1764864009746,0.21208002,93044.0,93027.0,0.03831733]
[1764864009747,0.10334,93028.0,93027.0,0.01090885]
[1764864009943,0.20966,93028.0,93023.0,0.03815608]
[1764864010132,0.06523,93038.0,93012.0,0.03815608]
[1764864010133,0.06765002,93024.0,93012.0,0.03815608]
[1764864010331,0.20966,93007.0,93006.0,0.0110188]
[1764864010537,0.010748,93024.0,93006.0,0.00107545]
[1764864010737,0.20966,93022.0,93021.0,0.0107482]
[1764864010937,0.21208002,93022.0,93021.0,0.0107482]
[1764864011938,0.21408002,93022.0,93021.0,0.0117482]
[1764864012633,0.21166,93022.0,93021.0,0.1191282]
[1764864012833,0.002,93022.0,93021.0,0.2195882]
[1764864013038,0.002,93022.0,93021.0,0.2205882]
[1764864013437,0.00016125,93031.0,93021.0,0.2205882]
[1764864013438,0.00016125,93031.0,93030.0,0.2185872]
[1764864013643,0.00016125,93031.0,93030.0,0.21939385]
[1764864013846,0.21224127,93031.0,93030.0,0.01155385]
[1764864014040,0.20982125,93031.0,93030.0,0.21939385]
[1764864014635,0.20982125,93031.0,93030.0,0.01155385]
[1764864014838,0.20966,93027.0,93026.0,0.0107476]
[1764864015044,0.21208002,93027.0,93026.0,0.0107476]
[1764864015243,0.20966,93022.0,93021.0,0.001]
[1764864015442,0.21208002,93022.0,93021.0,0.001]
[1764864015747,0.21208002,93022.0,93012.0,0.03831733]
[1764864015748,0.2204092,93013.0,93012.0,1.25e-06]
[1764864015938,0.20966,93003.0,93002.0,4.88e-06]
[1764864016138,0.0107502,93004.0,93002.0,4.88e-06]
[1764864016338,0.06523,93002.0,92996.0,0.05723413]
[1764864016647,0.21208002,92997.0,92996.0,0.0107512]
[1764864016838,0.21208002,92997.0,92996.0,0.06798533]
[1764864017039,0.10632,92997.0,92996.0,0.2226312]
[1764864017238,0.10648125,93006.0,93005.0,0.0107501]
[1764864017437,0.10648125,93006.0,93005.0,0.22343675]
[1764864017642,0.00016125,93006.0,93005.0,0.22343675]
[1764864018437,0.21324127,93006.0,93005.0,0.01455675]
[1764864019247,0.21324127,93006.0,93005.0,0.01655675]
[1764864020743,0.21324127,93006.0,93005.0,0.0157501]
[1764864020937,0.21324127,93006.0,93005.0,0.0156164]
[1764864022248,0.21324127,93006.0,93000.0,0.0107506]
[1764864022452,0.21208002,93001.0,93000.0,0.0107506]
[1764864023546,0.21208002,93001.0,93000.0,0.0127506]
[1764864023853,0.21208002,93001.0,93000.0,0.002]
[1764864024049,0.21308002,93001.0,93000.0,0.006]
[1764864025854,0.21066,93001.0,93000.0,0.006]
[1764864026555,0.21066,93001.0,93000.0,0.0167507]
[1764864028256,0.21066,93001.0,93000.0,0.006]
[1764864030056,0.20966,92999.0,92998.0,0.0107508]
[1764864030351,0.21208002,92999.0,92998.0,0.0107508]
[1764864030556,0.0107513,92996.0,92995.0,0.0107512]
[1764864030755,0.22283132,92996.0,92995.0,0.0107512]
[1764864031150,0.21208002,92996.0,92995.0,0.0107512]
[1764864031547,0.21208002,92996.0,92995.0,0.02302055]
[1764864031757,0.21308002,92996.0,92995.0,0.02902065]
[1764864032059,0.20966,92988.0,92987.0,0.00016125]
[1764864032259,0.21208002,92988.0,92987.0,0.00016125]
[1764864033854,0.21908002,92988.0,92987.0,0.00116125]
[1764864034047,0.21908002,92988.0,92987.0,0.01380236]
[1764864034257,0.21908002,92988.0,92976.0,0.0107534]
[1764864034258,0.0107535,92977.0,92976.0,0.0107534]
[1764864034460,0.2151332,92979.0,92978.0,0.0107531]
[1764864034759,0.20680002,92979.0,92978.0,0.0107531]
[1764864035256,0.20680002,92979.0,92978.0,0.02294447]
[1764864035461,0.20680002,92979.0,92978.0,0.0107531]
[1764864035848,0.20680002,92979.0,92978.0,0.02321683]
[1764864036048,0.20680002,92979.0,92978.0,0.0107531]
[1764864036253,0.20680002,92979.0,92978.0,0.0134401]
[1764864036554,0.20680002,92979.0,92978.0,0.001]
[1764864036857,0.2151345,92967.0,92966.0,4.27e-06]
[1764864037062,0.2151345,92967.0,92966.0,0.0124568]
[1764864037251,0.2151356,92958.0,92957.0,0.0107556]
[1764864037447,0.2151356,92958.0,92944.0,0.0107571]
[1764864037648,0.20438,92945.0,92944.0,0.02318735]
[1764864037961,0.20450659,92945.0,92944.0,0.0107572]
[1764864038762,0.20450659,92945.0,92944.0,0.0147572]
[1764864038966,0.20450659,92945.0,92944.0,0.02741564]
[1764864039261,0.20450659,92945.0,92944.0,0.03041564]
[1764864040055,0.20450659,92945.0,92944.0,0.02641564]
[1764864040248,0.20550659,92945.0,92944.0,0.03041564]
[1764864040960,0.20550659,92945.0,92944.0,0.01965844]
[1764864041264,0.21050659,92945.0,92944.0,0.01465844]
[1764864041459,0.21050659,92945.0,92944.0,0.01565844]
[1764864042256,0.2151381,92936.0,92935.0,0.01086636]
[1764864042457,0.20680002,92936.0,92935.0,0.01086636]
[1764864042668,0.20680002,92936.0,92935.0,0.11989636]
[1764864042854,0.20438,92936.0,92935.0,0.22911611]
[1764864043454,0.20838,92936.0,92935.0,0.23011611]
[1764864043854,0.20838,92936.0,92935.0,0.23211611]
[1764864045153,0.004,92936.0,92935.0,0.23211611]
[1764864046060,0.10889,92936.0,92935.0,0.23211611]
[1764864046656,0.004,92936.0,92935.0,0.23211611]
[1764864047258,0.10889,92936.0,92935.0,0.23211611]
[1764864048364,0.20838,92936.0,92935.0,0.23211611]
[1764864048765,0.20838,92936.0,92935.0,0.02599611]
[1764864048953,0.20838,92936.0,92935.0,0.01523791]
[1764864050974,0.20838,92936.0,92935.0,0.00310816]
[1764864051273,0.20838,92936.0,92926.0,0.00026903]
[1764864051274,0.2033191,92927.0,92926.0,0.00026903]
[1764864051568,0.2033217,92905.0,92887.0,0.0381327]
[1764864051762,0.20342738,92905.0,92904.0,0.01391929]
[1764864051958,0.19266568,92905.0,92904.0,0.01391929]
[1764864052569,0.19266568,92905.0,92904.0,0.20393929]
[1764864053166,0.19266568,92905.0,92904.0,0.01391929]
[1764864053479,0.19866568,92905.0,92904.0,0.01391929]
[1764864054376,0.10439568,92905.0,92904.0,0.20493929]
[1764864055066,0.19866568,92905.0,92904.0,0.20493929]
[1764864055372,0.19272143,92914.0,92913.0,0.19002]
[1764864055677,0.19514145,92914.0,92913.0,0.20158745]
[1764864056069,0.19514145,92914.0,92913.0,0.10632745]
[1764864056373,0.09845143,92914.0,92913.0,0.20158745]
[1764864056566,0.00716143,92914.0,92913.0,0.20258745]
[1764864057168,0.19972143,92914.0,92913.0,0.01256745]
[1764864057469,0.19972143,92914.0,92913.0,0.0117608]
[1764864057767,0.19972143,92914.0,92913.0,0.001]
[1764864058075,0.19972143,92914.0,92913.0,0.00180665]
[1764864058272,0.19972143,92914.0,92913.0,0.19182665]
[1764864059969,0.00716143,92914.0,92913.0,0.19182665]
[1764864060376,0.0107585,92933.0,92913.0,0.00180665]
[1764864060571,0.0107562,92953.0,92913.0,0.00180665]
[1764864060572,0.24909,92930.0,92929.0,0.0107589]
[1764864061569,0.19256,92921.0,92920.0,0.00016143]
[1764864061869,0.19498002,92921.0,92920.0,0.01172808]
[1764864062774,0.19498002,92921.0,92920.0,0.20174808]
[1764864063069,0.19856,92921.0,92920.0,0.20274808]
[1764864063875,0.19856,92921.0,92920.0,0.10748808]
[1764864064376,0.19856,92921.0,92920.0,0.01192143]
[1764864064570,0.19856,92921.0,92920.0,0.00116143]
[1764864065074,0.19856,92921.0,92920.0,0.20007143]
[1764864065274,0.006,92921.0,92920.0,0.26158143]
[1764864065874,0.00016143,92939.0,92938.0,0.2096679]
[1764864066371,0.08602132,92963.0,92962.0,0.2096651]
[1764864066771,0.1969,92979.0,92978.0,0.0107532]
[1764864067071,0.06172,92980.0,92976.0,0.0107534]
[1764864067072,0.1969,92977.0,92976.0,0.0107534]
[1764864067273,0.19932002,92977.0,92976.0,0.0107534]
[1764864067672,0.1969,92968.0,92967.0,0.00016133]
[1764864067869,0.19932002,92968.0,92967.0,0.00096798]
[1764864068069,0.1969,92968.0,92967.0,0.21344557]
[1764864068270,0.25862,92980.0,92979.0,0.0107531]
[1764864068481,0.1969,92980.0,92979.0,0.0107531]
[1764864069287,0.1969,92976.0,92975.0,0.0107535]
[1764864070278,0.09676,92976.0,92975.0,0.2096635]
[1764864070870,0.1969,92976.0,92975.0,0.2096635]
[1764864071175,0.09676,92976.0,92975.0,0.2096635]
[1764864071375,0.09776,92980.0,92979.0,0.1059231]
[1764864071574,0.09918002,92980.0,92979.0,0.10672975]
[1764864071979,0.00016133,92986.0,92979.0,0.21046975]
[1764864072174,0.09692133,92986.0,92985.0,0.21046905]
[1764864072567,0.19706133,92986.0,92985.0,0.21046905]
[1764864073274,0.19706133,92986.0,92985.0,0.10672905]
[1764864073479,0.19806133,92986.0,92985.0,0.11172905]
[1764864074773,0.00116133,92986.0,92985.0,0.21546905]
[1764864074975,0.00116133,92986.0,92985.0,0.21446905]
[1764864075685,0.00116133,92986.0,92985.0,0.21346905]
[1764864076383,0.00116133,92986.0,92985.0,0.21646905]
[1764864076696,0.19806133,92986.0,92985.0,0.21646905]
[1764864077878,0.19706133,92986.0,92985.0,0.21146905]
[1764864078082,0.19806133,92986.0,92985.0,0.21646905]
[1764864078480,0.19806133,92986.0,92985.0,0.21546905]
[1764864078675,0.19806133,92986.0,92985.0,0.01455905]
[1764864078982,0.19806133,92986.0,92985.0,0.003]
[1764864079173,0.19806133,92986.0,92958.0,0.0107555]
[1764864079370,0.1969,92968.0,92967.0,1.52480551]
[1764864080386,0.1969,92968.0,92967.0,1.52680551]
[1764864080987,0.1969,92980.0,92979.0,0.0107531]
[1764864081287,0.1969,92977.0,92976.0,0.0107535]
[1764864081488,0.19932002,92977.0,92976.0,0.0107535]
[1764864082284,0.0107544,92971.0,92970.0,0.0107541]
[1764864082485,0.2076544,92971.0,92970.0,0.0107541]
[1764864082679,0.1969,92971.0,92970.0,0.1059241]
[1764864082878,0.1969,92971.0,92970.0,0.0107541]
[1764864083085,0.1969,92971.0,92970.0,0.2096641]
[1764864083285,0.006,92977.0,92976.0,0.2096635]
[1764864083585,0.005,92977.0,92976.0,0.21047015]
[1764864083790,0.19706133,92986.0,92985.0,0.1059224]
[1764864083984,0.19706133,92986.0,92985.0,0.10672905]
[1764864084291,0.1969,92973.0,92972.0,0.19891]
[1764864084691,0.1969,92971.0,92970.0,0.001]
[1764864084882,0.19932002,92971.0,92970.0,0.001]
[1764864085082,0.19932002,92971.0,92970.0,0.00080665]
[1764864085284,0.1969,92969.0,92968.0,0.0107544]
[1764864085484,0.19932002,92969.0,92968.0,0.0107544]
[1764864086393,0.1969,92968.0,92967.0,0.01405101]
[1764864086697,0.19932002,92968.0,92967.0,0.01405101]
[1764864086892,0.19932002,92968.0,92967.0,0.21296101]
[1764864087191,0.19932002,92968.0,92967.0,0.01405101]
[1764864088295,0.19932002,92968.0,92967.0,0.00116133]
[1764864088296,0.20132002,92968.0,92967.0,0.00116133]
[1764864088700,0.1969,92959.0,92958.0,0.0107555]
[1764864088893,0.19932002,92959.0,92958.0,0.0107555]
[1764864090300,0.19932002,92959.0,92958.0,0.02426443]
[1764864090796,0.19932002,92959.0,92958.0,0.22617443]
[1764864091006,0.1979,92959.0,92958.0,0.22617443]
[1764864091786,0.1969,92959.0,92958.0,0.22317443]
[1764864092096,0.001,92959.0,92958.0,0.22617443]
[1764864092496,0.2076541,92971.0,92970.0,0.0107542]
[1764864092805,0.1969,92959.0,92958.0,0.02726453]
[1764864092994,0.1969,92959.0,92958.0,0.22617453]
[1764864094003,0.1969,92959.0,92958.0,0.22317453]
[1764864094195,0.1979,92959.0,92958.0,0.22617453]
[1764864094596,0.1969,92959.0,92958.0,0.11943453]
[1764864094899,0.1979,92959.0,92958.0,0.13069453]
[1764864095100,0.1979,92959.0,92958.0,0.02726453]
[1764864095291,0.1979,92959.0,92958.0,0.13069453]
[1764864095494,0.1979,92959.0,92958.0,0.22368453]
[1764864096187,0.001,92959.0,92958.0,0.22368453]
[1764864096787,0.06172,92972.0,92971.0,0.0107541]
[1764864097002,0.24967,92972.0,92971.0,0.0107541]
[1764864097300,0.05769485,92999.0,92985.0,0.2071724]
[1764864097497,0.01075,93006.0,92985.0,0.7114124]
[1764864097698,0.01075,93006.0,92985.0,0.74008032]
[1764864097901,0.05553,93010.0,92985.0,0.23584032]
[1764864097902,0.10019133,92986.0,92985.0,0.23584032]
[1764864098093,0.18811133,92986.0,92985.0,0.7115724]
[1764864098590,0.18811133,92986.0,92985.0,0.2071724]
[1764864098789,0.18811133,92986.0,92985.0,0.0107524]
[1764864099103,0.18911133,92986.0,92985.0,0.0187524]
[1764864100292,0.18811133,92986.0,92985.0,0.0117524]
[1764864100492,0.18911133,92986.0,92985.0,0.0147524]
[1764864100704,0.18911133,92986.0,92985.0,0.0157524]
[1764864101200,0.18911133,92986.0,92985.0,0.004]
[1764864101400,0.1987034,92977.0,92976.0,0.00016133]
[1764864101603,0.20112342,92977.0,92976.0,1.33e-06]
[1764864101801,0.18795,92959.0,92958.0,0.02426443]
[1764864102302,0.18795,92959.0,92958.0,0.21399443]
[1764864103106,0.18795,92959.0,92958.0,0.02426443]
[1764864103907,0.18895,92959.0,92958.0,0.02626443]
[1764864105913,0.18895,92959.0,92958.0,0.01550893]
[1764864106298,0.18895,92959.0,92958.0,0.18692893]
[1764864106501,0.10103,92959.0,92958.0,0.18692893]
[1764864106700,0.10003,92959.0,92958.0,0.18492893]
[1764864106900,0.18951,92959.0,92958.0,0.18592893]
[1764864107295,0.001,92959.0,92958.0,0.18592893]
[1764864107501,0.17692002,92959.0,92958.0,0.18592893]
[1764864107703,0.1745,92959.0,92958.0,0.18592893]
[1764864108011,0.1852554,92959.0,92958.0,0.09962893]
[1764864108213,0.1852554,92959.0,92958.0,0.01450893]
[1764864108512,0.1745,92959.0,92958.0,0.01450893]
[1764864112108,0.1745,92959.0,92958.0,0.001]
[1764864112311,0.1735,92940.0,92939.0,0.02866792]
[1764864112506,0.0107571,92945.0,92943.0,0.0107572]
[1764864112812,0.17592002,92944.0,92943.0,0.0107572]
[1764864113002,0.17592002,92944.0,92943.0,0.02588272]
[1764864113201,0.17592002,92944.0,92943.0,0.0107572]
[1764864114009,0.17592002,92944.0,92923.0,0.0107596]
[1764864114010,0.1735,92927.0,92923.0,0.0107596]
[1764864114210,0.1735,92927.0,92914.0,0.05739705]
[1764864114211,0.1735,92927.0,92914.0,0.0381327]
[1764864114403,0.1735,92927.0,92922.0,0.0107597]
[1764864114797,0.1735,92927.0,92913.0,1.5]
[1764864114798,0.1735,92927.0,92926.0,0.00407447]
[1764864115003,0.1735,92927.0,92913.0,0.0107608]
[1764864115004,0.1842607,92914.0,92913.0,0.0107608]
[1764864115211,0.1735,92905.0,92904.0,0.22041777]
[1764864115409,0.17592002,92905.0,92904.0,0.04899777]
[1764864115611,0.17592002,92905.0,92904.0,0.05336861]
[1764864116107,0.17592002,92905.0,92904.0,0.02599771]
[1764864116312,0.08502,92905.0,92904.0,0.19741771]
[1764864116510,0.001,92927.0,92904.0,0.19741771]
[1764864116511,0.001,92927.0,92922.0,0.1821797]
[1764864116711,0.17608144,92923.0,92922.0,0.1821797]
[1764864116915,0.17366142,92923.0,92922.0,0.1821797]
[1764864117116,0.08518142,92923.0,92922.0,0.1821797]
[1764864117615,0.17366142,92923.0,92922.0,0.1821797]
[1764864118114,0.17566142,92923.0,92922.0,0.17242]
[1764864118315,0.17566142,92923.0,92922.0,0.08612]
[1764864119517,0.1842598,92921.0,92920.0,0.0107598]
[1764864119711,0.17592002,92921.0,92920.0,0.0107598]
[1764864119909,0.17592002,92921.0,92916.0,0.0107604]
[1764864120116,0.00316142,92923.0,92904.0,0.02599771]
[1764864120117,0.1735,92905.0,92904.0,0.02599771]
[1764864120311,0.1735,92905.0,92904.0,0.01523591]
[1764864120716,0.1842617,92905.0,92904.0,0.01523591]
[1764864121115,0.1842617,92905.0,92904.0,0.00010327]
[1764864121321,0.1735,92887.0,92886.0,0.08538915]
[1764864121622,0.1735,92887.0,92886.0,0.00026915]
[1764864121919,0.00016142,92896.0,92886.0,0.0159072]
[1764864122112,0.17608144,92896.0,92895.0,0.18298955]
[1764864122313,0.1735,92887.0,92886.0,0.10046856]
[1764864122624,0.17592002,92887.0,92886.0,1.52611246]
[1764864123023,0.17692002,92887.0,92886.0,1.52811246]
[1764864123222,0.17692002,92887.0,92886.0,1.52911246]
[1764864123410,0.1745,92887.0,92886.0,1.52911246]
[1764864123720,0.001,92887.0,92886.0,1.52911246]
[1764864124209,0.0002856,92896.0,92886.0,1.52911246]
[1764864124415,0.0002856,92896.0,92895.0,0.17959955]
[1764864124613,0.1720356,92896.0,92895.0,0.17959955]
[1764864124812,0.0002856,92896.0,92895.0,0.17959955]
[1764864125011,0.17175,92916.0,92915.0,0.0107605]
[1764864125212,0.17417002,92916.0,92915.0,0.0107605]
[1764864125411,0.17417002,92916.0,92892.0,0.05039]
[1764864125412,0.17175,92906.0,92892.0,0.05039]
[1764864125726,0.17175,92903.0,92902.0,0.098672]
[1764864125920,0.17175,92903.0,92902.0,0.08791]
[1764864126124,0.17175,92896.0,92895.0,0.16903]
[1764864126419,0.09076,92896.0,92895.0,0.16903]
[1764864126624,0.17175,92896.0,92895.0,0.16803]
[1764864127418,0.17175,92894.0,92893.0,0.00016142]
[1764864127618,0.17417002,92894.0,92893.0,0.00016142]
[1764864128323,0.17417002,92894.0,92893.0,0.16899807]
[1764864128324,0.09076,92894.0,92893.0,0.16899807]